bitfinex/quotes_BTCUSD_20260125
["timestamp","ask_amount","ask_price","bid_price","bid_amount"]
[1769370244794,1.05813938,86769.0,86746.0,1.0620077]
[1769370245006,1.05813938,86769.0,86744.0,0.01152817]
[1769370245007,1.05813938,86769.0,86749.0,0.47451883]
[1769370245230,1.05813938,86769.0,86750.0,0.47451883]
[1769370245442,1.05813938,86769.0,86753.0,1.0620077]
[1769370245660,1.05813938,86769.0,86754.0,0.47451883]
[1769370247198,0.87235814,86769.0,86754.0,0.47451883]
[1769370247694,0.48559157,86772.0,86755.0,1.0620077]
[1769370247897,0.01306656,86771.0,86755.0,1.0620077]
[1769370249721,0.48559157,86772.0,86757.0,1.53652653]
[1769370250165,1.05813938,86775.0,86758.0,0.47451883]
[1769370250365,1.05813938,86775.0,86759.0,0.47451883]
[1769370251167,0.11312923,86774.0,86759.0,0.47451883]
[1769370251374,1.05813938,86775.0,86759.0,0.47451883]
[1769370252398,0.1131389,86774.0,86759.0,0.47451883]
[1769370252791,1.05813938,86775.0,86759.0,0.47451883]
[1769370253404,0.11314802,86774.0,86759.0,0.47451883]
[1769370253618,1.1712874,86774.0,86759.0,0.47451883]
[1769370253840,1.05813938,86774.0,86759.0,0.47451883]
[1769370256352,0.11318673,86773.0,86759.0,0.47451883]
[1769370256764,1.05813938,86774.0,86759.0,0.47451883]
[1769370257326,0.17708,86779.0,86744.0,0.49943334]
[1769370257327,0.01,86759.0,86744.0,0.49943334]
[1769370257525,0.01,86759.0,86740.0,0.0002424]
[1769370257526,0.47496106,86758.0,86746.0,0.22508]
[1769370257729,1.10669852,86757.0,86746.0,0.22508]
[1769370258995,1.10669852,86757.0,86746.0,0.2252105]
[1769370259204,0.47496106,86753.0,86746.0,1e-08]
[1769370259459,1.10669852,86751.0,86746.0,1e-08]
[1769370259745,1.10669852,86747.0,86746.0,1e-08]
[1769370259962,1.58165958,86747.0,86746.0,1e-08]
[1769370260249,0.47496106,86759.0,86742.0,1.57933753]
[1769370260622,0.11323701,86758.0,86745.0,0.01794427]
[1769370261173,0.47496106,86757.0,86742.0,0.00010877]
[1769370261382,0.11323701,86756.0,86742.0,0.00010877]
[1769370261581,0.11323701,86755.0,86742.0,0.00010877]
[1769370261950,1.21993553,86754.0,86742.0,0.00010877]
[1769370262127,1.10669852,86754.0,86742.0,0.00010877]
[1769370262487,0.11328584,86753.0,86742.0,0.00010877]
[1769370263289,1.10669852,86754.0,86742.0,0.00010877]
[1769370263490,0.11328279,86753.0,86742.0,0.00010877]
[1769370263718,0.47496106,86749.0,86740.0,0.0002424]
[1769370263894,1.58165958,86748.0,86740.0,0.0002424]
[1769370264457,0.00011412,86749.0,86740.0,1.08014659]
[1769370264601,0.00011412,86749.0,86740.0,0.0002424]
[1769370265528,1.10669852,86756.0,86740.0,0.0002424]
[1769370265725,0.1132803,86755.0,86740.0,0.00038408]
[1769370266335,1.21997882,86755.0,86740.0,0.00038408]
[1769370266542,0.1132803,86754.0,86740.0,0.00038408]
[1769370266741,0.1132803,86754.0,86733.0,0.0531539]
[1769370266742,0.00989123,86736.0,86695.0,0.49943334]
[1769370267002,0.00989123,86736.0,86682.0,0.0002424]
[1769370267003,0.30470417,86730.0,86712.0,0.04150427]
[1769370267226,1.10669852,86729.0,86712.0,0.04150427]
[1769370267369,1.21983205,86728.0,86712.0,0.04150427]
[1769370267588,0.47496106,86729.0,86712.0,0.04150427]
[1769370267589,0.11313353,86727.0,86712.0,0.04150427]
[1769370267790,0.47496106,86729.0,86712.0,1.12140846]
[1769370267992,0.11315141,86728.0,86713.0,0.49943334]
[1769370268170,0.47496106,86729.0,86713.0,1.57933753]
[1769370268370,1.10669852,86728.0,86713.0,1.57933753]
[1769370268585,1.10669852,86728.0,86713.0,0.49943334]
[1769370268837,0.47496106,86727.0,86711.0,0.04173839]
[1769370268988,1.10669852,86725.0,86714.0,0.17708]
[1769370269935,0.47496106,86709.0,86685.0,0.49943334]
[1769370270134,1.10669852,86706.0,86692.0,0.0004324]
[1769370270335,0.47496106,86704.0,86692.0,0.0004324]
[1769370270493,1.21971669,86703.0,86692.0,0.0004324]
[1769370270706,0.47496106,86702.0,86692.0,0.0004324]
[1769370270905,1.10669852,86699.0,86692.0,0.0004324]
[1769370271114,1.10669852,86699.0,86693.0,0.17712]
[1769370271771,1.10669852,86699.0,86692.0,0.0004324]
[1769370271957,1.10669852,86699.0,86693.0,0.17712]
[1769370274326,1.10669852,86699.0,86692.0,0.0004324]
[1769370274573,0.45069114,86707.0,86686.0,0.17712]
[1769370274754,0.45069114,86705.0,86686.0,0.17712]
[1769370274958,1.50424317,86702.0,86686.0,0.17712]
[1769370275256,0.45069114,86701.0,86686.0,0.17712]
[1769370275418,1.05355203,86700.0,86681.0,1.10412576]
[1769370275614,0.01167458,86707.0,86682.0,0.22324]
[1769370275615,0.45069114,86697.0,86682.0,0.22324]
[1769370275821,1.05355203,86696.0,86682.0,0.22324]
[1769370276435,1.50424317,86696.0,86682.0,0.22324]
[1769370276631,0.05766311,86711.0,86682.0,0.22324]
[1769370276632,0.44930532,86712.0,86696.0,0.00010876]
[1769370276836,0.44930532,86712.0,86697.0,0.17716]
[1769370277039,1.50285735,86712.0,86697.0,0.17716]
[1769370277240,0.39285539,86730.0,86702.0,0.48578084]
[1769370277241,1.05355203,86724.0,86702.0,0.48578084]
[1769370277466,1.17902853,86723.0,86704.0,0.48578084]
[1769370277641,0.11240994,86722.0,86706.0,1.10412576]
[1769370277842,0.45069114,86703.0,86686.0,0.01153588]
[1769370278216,0.45069114,86703.0,86680.0,0.17756]
[1769370278217,0.45069114,86701.0,86683.0,0.48578084]
[1769370278391,0.0001416,86703.0,86687.0,0.17716]
[1769370278594,1.05355203,86701.0,86687.0,0.17716]
[1769370279041,0.45069114,86701.0,86687.0,0.17716]
[1769370279246,1.05355203,86700.0,86687.0,0.17716]
[1769370279395,1.05355203,86698.0,86687.0,0.17716]
[1769370279784,1.05355203,86696.0,86687.0,0.17716]
[1769370279999,0.45069114,86700.0,86680.0,0.0004]
[1769370280000,0.45069114,86700.0,86680.0,0.49771752]
[1769370280194,1.50424317,86700.0,86681.0,1.28128576]
[1769370280378,1.05355203,86699.0,86682.0,0.48578084]
[1769370281521,1.05355203,86699.0,86683.0,0.17716]
[1769370281701,1.05355203,86698.0,86683.0,0.17716]
[1769370281879,0.45069114,86698.0,86683.0,0.17716]
[1769370282088,1.05355203,86697.0,86683.0,0.17716]
[1769370282298,0.0001416,86703.0,86687.0,0.04162427]
[1769370282506,0.0001416,86703.0,86688.0,1.10412576]
[1769370283148,1.05369363,86703.0,86687.0,0.04162427]
[1769370283719,1.05369363,86703.0,86687.0,0.05316002]
[1769370283923,1.05369363,86703.0,86688.0,0.01153562]
[1769370284119,1.05369363,86703.0,86692.0,0.01153508]
[1769370284331,0.45069114,86720.0,86705.0,0.01153336]
[1769370284586,0.45069114,86733.0,86707.0,0.48578084]
[1769370284769,0.45069114,86729.0,86707.0,0.48578084]
[1769370284924,1.05355203,86726.0,86707.0,0.49731393]
[1769370285135,1.05355203,86724.0,86707.0,0.49731393]
[1769370285333,1.05355203,86724.0,86707.0,0.48578084]
[1769370286831,0.00989123,86707.0,86684.0,1.10412576]
[1769370287029,0.00989123,86707.0,86698.0,0.04162427]
[1769370287184,0.45069114,86706.0,86695.0,0.04616]
[1769370287386,1.05355203,86703.0,86697.0,0.1772]
[1769370287593,0.00989123,86707.0,86697.0,0.1772]
[1769370287753,1.50424317,86710.0,86697.0,0.1772]
[1769370289660,0.13597714,86738.0,86710.0,0.00010876]
[1769370289661,0.45069114,86727.0,86710.0,0.00010876]
[1769370289834,1.05355203,86725.0,86706.0,1.5899066]
[1769370290032,1.62995169,86724.0,86706.0,1.5899066]
[1769370290268,1.16619399,86723.0,86706.0,1.5899066]
[1769370290472,1.17926055,86722.0,86706.0,0.48578084]
[1769370290676,0.11269153,86721.0,86706.0,0.48578084]
[1769370291730,1.16624356,86721.0,86706.0,0.48578084]
[1769370291931,1.05355203,86721.0,86706.0,0.48578084]
[1769370293036,1.05355203,86721.0,86703.0,0.04162427]
[1769370293238,1.50424317,86719.0,86703.0,0.04162427]
[1769370294280,0.45069114,86719.0,86701.0,0.48578084]
[1769370294480,1.05355203,86717.0,86701.0,0.48578084]
[1769370294681,0.05765367,86725.0,86702.0,0.1772]
[1769370294888,0.05765367,86725.0,86698.0,0.04616]
[1769370294889,0.01153083,86724.0,86703.0,0.199536]
[1769370295090,0.45069114,86722.0,86703.0,0.199536]
[1769370295295,0.45069114,86718.0,86703.0,0.199536]
[1769370295462,1.05355203,86715.0,86703.0,0.1772]
[1769370295663,0.45069114,86712.0,86703.0,0.1772]
[1769370295863,1.05355203,86709.0,86703.0,0.1772]
[1769370297224,0.45069114,86710.0,86703.0,0.1772]
[1769370297617,1.50424317,86710.0,86703.0,0.1772]
[1769370298867,0.45069114,86710.0,86703.0,0.1772]
[1769370299554,1.50424317,86710.0,86703.0,0.0639721]
[1769370300176,1.05355203,86709.0,86699.0,0.1772]
[1769370300379,0.45069114,86709.0,86700.0,0.01900368]
[1769370300786,0.45069114,86709.0,86684.0,0.01153615]
[1769370301020,0.01153163,86718.0,86685.0,0.1772]
[1769370301021,1.05355203,86704.0,86685.0,0.1772]
[1769370301231,0.45069114,86701.0,86686.0,0.04162427]
[1769370301443,1.50424317,86699.0,86686.0,0.04162427]
[1769370301647,1.31291932,86699.0,86686.0,0.04162427]
[1769370301862,0.45069114,86698.0,86680.0,0.0004]
[1769370302068,0.1772,86709.0,86680.0,0.0004]
[1769370302069,0.45069114,86694.0,86680.0,0.0004]
[1769370302286,1.05355203,86691.0,86681.0,0.01911227]
[1769370302493,1.05355203,86690.0,86681.0,0.01911227]
[1769370302702,0.45069114,86691.0,86681.0,0.01911227]
[1769370302703,0.11321285,86689.0,86681.0,0.01958481]
[1769370302905,1.05355203,86689.0,86681.0,0.01958481]
[1769370303106,1.05355203,86689.0,86681.0,0.00047254]
[1769370303325,1.05355203,86689.0,86676.0,0.0004]
[1769370303326,0.57595774,86688.0,86676.0,0.0004]
[1769370303569,0.11322669,86687.0,86676.0,0.0004]
[1769370303971,1.11162086,86686.0,86676.0,0.0004]
[1769370304586,0.00047216,86688.0,86676.0,0.0004]
[1769370305509,0.46273105,86685.0,86676.0,0.0004]
[1769370305711,1.11162086,86682.0,86672.0,0.0004]
[1769370306005,0.46273105,86678.0,86672.0,0.0004]
[1769370306209,1.11162086,86687.0,86672.0,0.0004]
[1769370306419,1.11162086,86683.0,86672.0,0.0004]
[1769370306624,0.46273105,86683.0,86672.0,0.0004]
[1769370306824,1.11162086,86682.0,86672.0,0.00736316]
[1769370307027,1.11162086,86682.0,86672.0,0.0004]
[1769370307028,0.46273105,86682.0,86672.0,0.0004]
[1769370307229,1.11162086,86681.0,86672.0,0.0004]
[1769370307868,0.00047216,86688.0,86673.0,0.04162427]
[1769370308081,0.11317896,86687.0,86674.0,1.1222071]
[1769370308440,0.11317896,86687.0,86673.0,0.04162427]
[1769370308441,0.11317896,86687.0,86680.0,0.01153668]
[1769370308642,0.13597714,86711.0,86673.0,0.04162427]
[1769370308643,1.11162086,86704.0,86685.0,0.49045411]
[1769370308849,1.11162086,86702.0,86685.0,0.0001416]
[1769370309068,1.11162086,86698.0,86681.0,0.02538157]
[1769370309288,0.46273105,86695.0,86681.0,0.02538157]
[1769370309447,0.46273105,86692.0,86675.0,0.01153735]
[1769370309680,1.22480165,86691.0,86674.0,0.1772]
[1769370309879,0.46273105,86689.0,86674.0,0.1772]
[1769370310212,1.22480165,86688.0,86674.0,0.1772]
[1769370310412,0.57591184,86687.0,86672.0,0.0004]
[1769370310612,0.46273105,86685.0,86672.0,0.0004]
[1769370310814,1.11162086,86682.0,86672.0,0.0004]
[1769370310977,0.18873495,86693.0,86672.0,0.0004]
[1769370310978,0.46273105,86680.0,86672.0,0.0004]
[1769370311177,1.11162086,86679.0,86672.0,0.0004]
[1769370311843,0.1772,86693.0,86678.0,0.01153695]
[1769370311844,0.46273105,86692.0,86678.0,0.01153695]
[1769370312049,1.11162086,86696.0,86680.0,1.61266121]
[1769370312050,0.11313308,86691.0,86680.0,1.61266121]
[1769370312291,1.11162086,86696.0,86640.0,0.0002907]
[1769370312292,1.11162086,86671.0,86640.0,0.0002907]
[1769370312495,1.11162086,86671.0,86631.0,0.23086381]
[1769370312496,0.38141976,86660.0,86641.0,0.22336]
[1769370312686,0.46273105,86656.0,86641.0,0.22336]
[1769370312936,0.01153855,86666.0,86636.0,9.64e-05]
[1769370312937,1.11162086,86654.0,86636.0,9.64e-05]
[1769370313132,1.11162086,86654.0,86642.0,0.22336]
[1769370313469,1.11162086,86654.0,86642.0,0.22383216]
[1769370313670,1.11162086,86654.0,86628.0,0.01154361]
[1769370313671,0.11160278,86653.0,86580.0,0.0004164]
[1769370313899,0.01154481,86619.0,86587.0,0.86429684]
[1769370314179,0.38141976,86628.0,86580.0,0.0004164]
[1769370314180,0.46273105,86608.0,86600.0,0.04162427]
[1769370314383,0.46273105,86608.0,86578.0,0.04162427]
[1769370314384,0.38141976,86610.0,86559.0,0.00019]
[1769370314385,0.01154947,86584.0,86559.0,0.00019]
[1769370314523,0.01154867,86590.0,86570.0,0.17807368]
[1769370314524,0.01154921,86586.0,86570.0,0.17807368]
[1769370314734,0.01155107,86572.0,86559.0,0.00019]
[1769370314934,0.38141976,86590.0,86533.0,0.09468852]
[1769370314935,0.25212653,86567.0,86557.0,0.04616]
[1769370315129,0.46273105,86566.0,86559.0,0.08313224]
[1769370315473,0.00346099,86554.0,86553.0,0.04616]
[1769370315599,0.46273105,86566.0,86553.0,1e-08]
[1769370315804,0.25226802,86567.0,86560.0,1e-08]
[1769370316024,0.25226802,86567.0,86561.0,0.02530932]
[1769370316247,0.49510639,86566.0,86544.0,0.10165948]
[1769370316454,0.0577608,86564.0,86531.0,0.01155655]
[1769370316754,0.49510639,86562.0,86542.0,0.10165948]
[1769370316959,0.49510639,86560.0,86542.0,0.10165948]
[1769370317179,1.15272274,86558.0,86534.0,0.01155615]
[1769370317404,0.49510639,86555.0,86536.0,0.01155588]
[1769370317705,0.49479047,86553.0,86546.0,0.01155454]
[1769370317901,0.49510639,86565.0,86544.0,0.01155481]
[1769370318101,0.49510639,86563.0,86545.0,0.01155468]
[1769370318449,0.49510639,86563.0,86544.0,0.01155481]
[1769370318599,1.15272274,86563.0,86544.0,0.01155481]
[1769370318807,0.49510639,86562.0,86544.0,0.01155481]
[1769370319118,0.49510639,86562.0,86544.0,0.00035601]
[1769370319323,0.49510639,86561.0,86544.0,0.00035601]
[1769370320048,0.49510639,86560.0,86544.0,0.00135601]
[1769370320341,0.49510639,86560.0,86544.0,0.01191082]
[1769370320523,0.49510639,86560.0,86546.0,0.01155454]
[1769370320756,0.49510639,86560.0,86547.0,0.00035599]
[1769370320888,1.64782913,86560.0,86544.0,0.00135599]
[1769370321087,1.15272274,86560.0,86544.0,0.00135599]
[1769370321444,0.49510639,86559.0,86544.0,0.00135599]
[1769370321647,1.15272274,86558.0,86544.0,0.00135599]
[1769370321851,0.49510639,86559.0,86548.0,0.01155428]
[1769370322013,0.49510639,86559.0,86547.0,0.01155441]
[1769370322215,0.49510639,86559.0,86548.0,0.00964723]
[1769370322450,0.25212653,86558.0,86548.0,0.00964723]
[1769370322650,0.25212653,86558.0,86550.0,0.01155401]
[1769370322854,0.25212653,86558.0,86549.0,0.01192182]
[1769370322855,0.25212653,86558.0,86549.0,0.00036768]
[1769370323016,0.25212653,86558.0,86549.0,0.01192182]
[1769370323200,0.25212653,86558.0,86550.0,0.01043578]
[1769370323405,0.25212653,86558.0,86550.0,0.01080345]
[1769370323820,0.25212653,86558.0,86550.0,0.00036767]
[1769370324245,0.25212653,86558.0,86545.0,0.00036767]
[1769370324449,0.49510639,86557.0,86544.0,0.00036769]
[1769370324669,1.64782913,86556.0,86539.0,0.17736]
[1769370324909,0.49510639,86556.0,86540.0,0.00056821]
[1769370325458,0.49510639,86556.0,86535.0,0.01155601]
[1769370325657,0.49510639,86556.0,86536.0,0.00057193]
[1769370325930,0.49510639,86556.0,86536.0,0.01212781]
[1769370326163,0.49510639,86556.0,86537.0,0.01155575]
[1769370326369,0.49510639,86556.0,86533.0,0.05778141]
[1769370326370,0.49510639,86556.0,86538.0,0.00057191]
[1769370326572,1.15272274,86555.0,86538.0,0.00057191]
[1769370326923,1.15272274,86555.0,86538.0,0.01212752]
[1769370327126,1.15272274,86566.0,86538.0,0.00057191]
[1769370327367,0.49510639,86563.0,86540.0,0.01155535]
[1769370327551,0.49510639,86562.0,86541.0,0.00057188]
[1769370327957,0.25212653,86554.0,86541.0,0.00057188]
[1769370328325,0.25212653,86554.0,86538.0,0.001]
[1769370328326,0.00057188,86541.0,86538.0,0.001]
[1769370328528,0.00057188,86541.0,86532.0,0.0004]
[1769370328970,0.00057188,86541.0,86538.0,0.001]
[1769370329592,0.49510639,86548.0,86533.0,0.05778142]
[1769370329772,1.15272274,86555.0,86534.0,0.01155615]
[1769370329992,1.15272274,86552.0,86535.0,0.01155601]
[1769370330189,0.00014149,86555.0,86532.0,0.0004]
[1769370330190,1.15272274,86551.0,86532.0,0.0004]
[1769370330390,0.49510639,86548.0,86532.0,0.01195641]
[1769370330708,0.49510639,86546.0,86532.0,0.0004]
[1769370330913,0.00014149,86555.0,86546.0,0.00100001]
[1769370331125,0.49510639,86569.0,86546.0,0.00100001]
[1769370331324,1.15272274,86569.0,86548.0,0.01155428]
[1769370331640,1.15272274,86569.0,86544.0,1.14850027]
[1769370331641,0.25212653,86547.0,86535.0,0.01155601]
[1769370332043,0.25212653,86547.0,86533.0,0.00115422]
[1769370332249,0.25212653,86547.0,86534.0,0.01155615]
[1769370332537,0.25212653,86547.0,86533.0,0.00115422]
[1769370332923,0.25212653,86547.0,86535.0,0.001]
[1769370333677,0.25212653,86547.0,86532.0,0.0004]
[1769370333876,0.25212653,86547.0,86534.0,0.01155615]
[1769370334088,0.17744,86550.0,86535.0,0.00115416]
[1769370334089,0.17444017,86550.0,86535.0,0.00115416]
[1769370334291,0.17444017,86550.0,86537.0,0.01155575]
[1769370334520,0.17444017,86550.0,86538.0,0.01155561]
[1769370334718,0.0462,86559.0,86543.0,1.05878701]
[1769370334839,0.04634185,86559.0,86544.0,0.01155481]
[1769370335103,0.04634185,86559.0,86543.0,1.05878701]
[1769370335308,0.04634185,86559.0,86541.0,0.01155521]
[1769370335506,0.04634185,86559.0,86543.0,0.01155494]
[1769370335730,0.04634185,86559.0,86541.0,0.01155521]
[1769370335940,0.04634185,86559.0,86542.0,0.01155508]
[1769370336130,0.25212636,86558.0,86544.0,0.001]
[1769370336412,0.25212636,86558.0,86545.0,0.00818874]
[1769370336611,0.25212636,86558.0,86537.0,1.05878701]
[1769370336923,0.25212636,86558.0,86541.0,0.001]
[1769370337329,0.25212636,86558.0,86541.0,0.01255521]
[1769370337670,0.25212636,86558.0,86542.0,0.01155508]
[1769370337877,0.25212636,86558.0,86541.0,0.01255521]
[1769370338072,0.25212636,86558.0,86540.0,0.01155535]
[1769370338233,0.25212636,86558.0,86538.0,0.43857869]
[1769370338234,0.25212636,86558.0,86538.0,0.38080074]
[1769370338439,0.47835568,86557.0,86532.0,0.18939641]
[1769370338637,1.54051782,86557.0,86535.0,0.01155601]
[1769370338855,1.54051782,86557.0,86534.0,0.01155615]
[1769370339242,1.54051782,86557.0,86532.0,0.18939641]
[1769370339669,1.54051782,86557.0,86533.0,0.01155628]
[1769370340109,0.04164185,86559.0,86532.0,1.24818342]
[1769370340110,0.47835568,86555.0,86532.0,0.0004]
[1769370340240,1.06216214,86552.0,86532.0,0.0004]
[1769370340455,1.06216214,86548.0,86532.0,0.0004]
[1769370340650,1.06216214,86544.0,86532.0,0.0004]
[1769370340858,0.47835568,86543.0,86532.0,0.0004]
[1769370341128,0.47835568,86543.0,86512.0,0.0244517]
[1769370341129,0.0004,86532.0,86512.0,0.0244517]
[1769370341341,0.0091004,86518.0,86512.0,0.0244517]
[1769370341549,0.0091004,86518.0,86492.0,1.05878701]
[1769370341550,1.07126254,86518.0,86505.0,0.19398411]
[1769370341751,0.47835568,86517.0,86505.0,0.19398411]
[1769370341960,0.47835568,86517.0,86476.0,0.23127613]
[1769370341961,0.47835568,86513.0,86481.0,0.01156323]
[1769370342164,0.0091004,86518.0,86483.0,0.01156296]
[1769370342165,1.06216214,86511.0,86483.0,0.01156296]
[1769370342379,0.47835568,86510.0,86486.0,0.01156256]
[1769370342591,1.06216214,86524.0,86492.0,0.01156176]
[1769370342809,0.0508362,86520.0,86493.0,1.05878701]
[1769370343109,1.17450142,86519.0,86495.0,0.01156136]
[1769370343252,0.59069496,86518.0,86494.0,0.01156149]
[1769370343454,0.59069496,86517.0,86495.0,0.01156136]
[1769370343658,0.25212636,86509.0,86494.0,0.01156149]
[1769370343863,0.47835568,86517.0,86509.0,0.00049959]
[1769370344077,0.11246484,86516.0,86509.0,0.00049959]
[1769370344511,1.06216214,86515.0,86488.0,0.01156229]
[1769370344721,0.11246484,86514.0,86490.0,0.01156203]
[1769370344865,0.59082052,86514.0,86489.0,0.37251931]
[1769370345087,0.47835568,86512.0,86489.0,0.00047347]
[1769370345596,1.06216214,86511.0,86489.0,0.00047347]
[1769370345803,1.54051782,86511.0,86489.0,0.00047347]
[1769370346003,0.47835568,86511.0,86489.0,0.01203563]
[1769370346206,0.47835568,86511.0,86491.0,1.05878701]
[1769370346704,0.25212636,86513.0,86493.0,0.01156162]
[1769370346925,0.25212636,86513.0,86489.0,0.01203563]
[1769370346926,1.06216214,86512.0,86489.0,0.00047347]
[1769370347138,1.54051782,86512.0,86489.0,0.00047347]
[1769370347340,1.06216214,86512.0,86489.0,0.00147347]
[1769370347559,0.47835568,86511.0,86489.0,0.00147347]
[1769370348196,1.06216214,86511.0,86489.0,0.00147347]
[1769370348390,0.47835568,86510.0,86489.0,0.00047347]
[1769370348932,0.47835568,86510.0,86489.0,0.00147347]
[1769370349132,1.06216214,86509.0,86489.0,0.00147347]
[1769370349537,0.01155802,86520.0,86489.0,0.00147347]
[1769370349538,0.47835568,86508.0,86489.0,0.00147347]
[1769370349736,0.01155855,86516.0,86489.0,0.00147347]
[1769370349737,1.06216214,86505.0,86489.0,0.00147347]
[1769370349922,0.47835568,86502.0,86489.0,0.00147347]
[1769370350124,0.47835568,86502.0,86489.0,0.00047347]
[1769370350338,0.47835568,86501.0,86489.0,0.00047347]
[1769370350576,0.47835568,86500.0,86489.0,0.00047347]
[1769370350778,0.47835568,86500.0,86489.0,0.00147347]
[1769370351179,0.47835568,86500.0,86489.0,0.00047347]
[1769370351387,1.06216214,86498.0,86489.0,0.00047347]
[1769370351603,0.47835568,86497.0,86489.0,0.00047347]
[1769370352984,0.25212636,86496.0,86489.0,0.00047347]
[1769370353591,0.47835568,86518.0,86496.0,0.00049959]
[1769370353795,0.47835568,86514.0,86496.0,0.00049959]
[1769370354025,0.10362575,86518.0,86489.0,0.00047347]
[1769370354026,1.06216214,86511.0,86489.0,0.00047347]
[1769370354235,0.47835568,86508.0,86489.0,0.00047347]
[1769370354418,1.06216214,86505.0,86489.0,0.00047347]
[1769370354607,0.47835568,86504.0,86489.0,0.00047347]
[1769370355606,0.25212636,86503.0,86489.0,0.00047347]
[1769370356137,0.25212636,86503.0,86467.0,0.28249063]
[1769370356138,1.06216214,86495.0,86461.0,0.29405653]
[1769370356347,0.47835568,86492.0,86461.0,0.22273248]
[1769370356567,0.47835568,86488.0,86461.0,0.23444035]
[1769370356781,0.47835568,86486.0,86468.0,0.01156497]
[1769370356932,1.06216214,86501.0,86486.0,0.00097306]
[1769370357148,0.47835568,86498.0,86475.0,1.05878701]
[1769370357297,0.47835568,86498.0,86480.0,1.05878701]
[1769370357742,1.06216214,86497.0,86471.0,0.01156457]
[1769370357954,0.47835568,86495.0,86475.0,0.01156403]
[1769370358174,0.17756,86507.0,86471.0,1.05878701]
[1769370358175,1.06216214,86492.0,86471.0,1.05878701]
[1769370358462,0.52919188,86491.0,86458.0,0.0115663]
[1769370358666,0.52919188,86491.0,86457.0,0.0002]
[1769370358667,0.47835568,86487.0,86457.0,0.0002]
[1769370358867,0.39491065,86490.0,86457.0,0.0002]
[1769370358868,0.47835568,86483.0,86457.0,0.0002]
[1769370359000,1.06216214,86480.0,86457.0,0.0002]
[1769370359220,1.06216214,86474.0,86457.0,0.0002]
[1769370359416,1.06216214,86470.0,86457.0,0.0002]
[1769370359619,0.47835568,86467.0,86457.0,0.0002]
[1769370359818,0.47835568,86466.0,86457.0,0.0002]
[1769370360140,0.47835568,86465.0,86457.0,0.0002]
[1769370361358,0.47835568,86483.0,86468.0,0.01156497]
[1769370361591,0.17756,86484.0,86469.0,0.00705062]
[1769370361791,1.06216214,86498.0,86469.0,0.00705062]
[1769370362002,0.49254023,86497.0,86474.0,1.05878701]
[1769370362227,0.0508362,86495.0,86474.0,1.05878701]
[1769370362430,0.01418455,86494.0,86474.0,1.05878701]
[1769370362802,0.01418455,86494.0,86402.0,0.05712191]
[1769370362803,0.00014184,86498.0,86484.0,1.05878701]
[1769370363035,0.47835568,86505.0,86484.0,1.05878701]
[1769370363242,0.01418455,86504.0,86484.0,1.05892885]
[1769370364149,1.08332484,86516.0,86488.0,0.01156229]
[1769370364336,0.01418455,86515.0,86504.0,0.00111503]
[1769370364464,0.01418455,86515.0,86493.0,1.05208457]
[1769370364670,0.1,86504.0,86493.0,1.05208457]
[1769370364919,0.38044176,86516.0,86493.0,1.05208457]
[1769370364920,0.28627967,86516.0,86493.0,1.05208457]
[1769370365326,0.0508362,86523.0,86484.0,0.00014184]
[1769370365327,1.08332484,86515.0,86484.0,0.00014184]
[1769370365585,1.08332484,86511.0,86484.0,0.00014184]
[1769370365777,0.01155842,86517.0,86484.0,0.00014184]
[1769370365778,0.38044176,86508.0,86484.0,0.00014184]
[1769370365985,1.08332484,86505.0,86488.0,0.001]
[1769370366135,0.38044176,86503.0,86488.0,0.001]
[1769370366337,0.38044176,86503.0,86484.0,0.00014184]
[1769370368287,0.38044176,86512.0,86486.0,1.06364713]
[1769370368465,1.08332484,86513.0,86485.0,0.01156269]
[1769370368466,0.11234015,86511.0,86485.0,0.22612563]
[1769370368665,0.11234015,86510.0,86490.0,1.0636466]
[1769370369011,0.11234015,86509.0,86490.0,1.05208457]
[1769370369221,0.11234015,86508.0,86490.0,1.05208457]
[1769370369391,0.11234015,86507.0,86490.0,1.05208457]
[1769370369593,0.11234015,86506.0,86490.0,1.05208457]
[1769370369797,0.38044176,86514.0,86493.0,0.01156162]
[1769370369975,0.11245563,86513.0,86492.0,1.05208457]
[1769370370181,0.38044176,86514.0,86492.0,1.05208457]
[1769370370182,0.11245563,86512.0,86492.0,1.05208457]
[1769370370390,0.11245563,86511.0,86492.0,1.05208457]
[1769370370612,0.11245563,86510.0,86492.0,1.05208457]
[1769370370810,0.11245563,86509.0,86492.0,1.05208457]
[1769370371025,0.11230248,86508.0,86492.0,1.05208457]
[1769370371421,0.11230248,86508.0,86488.0,0.06937327]
[1769370371422,0.08904417,86521.0,86486.0,1.05208457]
[1769370371607,0.08904417,86531.0,86511.0,1.05208457]
[1769370371816,0.0508362,86535.0,86511.0,1.05208457]
[1769370371817,0.38044176,86534.0,86511.0,1.05208457]
[1769370372297,0.04624,86540.0,86516.0,1.05208457]
[1769370372498,0.0508362,86538.0,86518.0,1.05208457]
[1769370372986,0.0508362,86538.0,86508.0,0.01155962]
[1769370372987,0.38044176,86535.0,86509.0,1.05208457]
[1769370373188,0.38044176,86533.0,86509.0,1.05208457]
[1769370373320,0.00047377,86538.0,86510.0,0.18912095]
[1769370373520,0.00047377,86538.0,86513.0,1.05208457]
[1769370373743,0.00047377,86538.0,86515.0,1.05208457]
[1769370373952,0.00047377,86538.0,86519.0,1.05208457]
[1769370374151,0.00047377,86538.0,86519.0,1.23670879]
[1769370374579,0.00047377,86538.0,86519.0,0.18462422]
[1769370374769,0.00047377,86538.0,86504.0,0.01156015]
[1769370374770,0.00047377,86538.0,86513.0,1.05208457]
[1769370375128,0.00147377,86538.0,86513.0,1.05208457]
[1769370375364,0.0251771,86545.0,86492.0,0.0508362]
[1769370375572,1.1491008,86568.0,86532.0,1.14136716]
[1769370375773,1.1491008,86568.0,86537.0,0.16181655]
[1769370375774,0.0508362,86560.0,86537.0,0.16181655]
[1769370375948,0.0508362,86560.0,86538.0,1.14136716]
[1769370376355,0.33353816,86557.0,86532.0,0.01169842]
[1769370376579,0.33353816,86556.0,86533.0,1.14136716]
[1769370376738,0.0508362,86562.0,86535.0,1.29878892]
[1769370376941,0.0508362,86562.0,86536.0,1.14136716]
[1769370377554,1.1491008,86564.0,86536.0,1.14136716]
[1769370377754,0.38437436,86563.0,86536.0,1.14136716]
[1769370377990,0.0508362,86561.0,86536.0,1.14136716]
[1769370378200,0.0508362,86561.0,86537.0,1.14136716]
[1769370380798,1.16065281,86565.0,86532.0,0.00014201]
[1769370380799,0.33353816,86552.0,86532.0,0.00014201]
[1769370381006,0.33353816,86548.0,86532.0,0.00014201]
[1769370381403,1.48263896,86548.0,86532.0,0.00014201]
[1769370381713,0.33353816,86550.0,86532.0,0.00014201]
[1769370381903,0.33353816,86548.0,86532.0,0.00014201]
[1769370382674,1.16065227,86569.0,86533.0,0.27576641]
[1769370382914,0.33353816,86567.0,86537.0,0.27576641]
[1769370383113,0.33353816,86567.0,86540.0,1.14136716]
[1769370383342,0.33353816,86567.0,86540.0,1.4127564]
[1769370383616,0.01155187,86566.0,86540.0,1.4127564]